FIN.Transaction Date,MCH.Merchant Name,FIN.Accounting Code 01 Value,FIN.Accounting Code 01 Description,FIN.Accounting Code 03 Description,FIN.Net Transaction Amount,FIN.Transaction Amount,FIN.TAX.Net Amount,FIN.Tax Amount,FIN.TAX.Tax Rate,FIN.Tax Rate(%)
06/01/2020,thetrainline.com,A10819,Legal Section,Training Expenses,68.99,68.99,.00,.00,.00,.00
15/01/2020,NCP LIMITED,A10819,Legal Section,Training Expenses,12.08,14.50,.00,2.42,.00,20.00
15/01/2020,LUL TICKET MACHINE,A10819,Legal Section,Training Expenses,8.90,8.90,.00,.00,.00,.00
23/01/2020,WWW.SHAWS.CO.UK,A10819,Legal Section,Stationery,32.05,32.05,.00,.00,.00,.00
28/02/2020,EAST MIDLANDS TRAI,A10819,Legal Section,Training Expenses,4.55,4.55,.00,.00,.00,.00
17/03/2020,SAVERS HEALTH & BEAUTY,A10109,Heritage Culture and Visitors,Cleaning Materials,2.48,2.97,.00,.49,.00,20.00
17/03/2020,W BOYES & CO LTD NEWAR,A10109,Heritage Culture and Visitors,Cleaning Materials,1.67,2.00,.00,.33,.00,20.00
18/02/2020,F W ARCHITECTURAL HARD,A10109,Heritage Culture and Visitors,Contractual Services,57.43,68.92,.00,11.49,.00,20.00
22/02/2020,TIMPSON LTD,A10109,Heritage Culture and Visitors,Contractual Services,12.50,15.00,.00,2.50,.00,20.00
24/02/2020,Primeprint Newark Ltd,A10109,Heritage Culture and Visitors,Advertising,34.00,40.80,.00,6.80,.00,20.00
05/02/2020,ROYAL MAIL CHARGES,A10833,Central Postages,Postages,1.50,1.50,.00,.00,.00,.00
13/02/2020,AMZNMktplace,A11831,Castle House,Other Equipment And Tools,9.97,11.96,.00,1.99,.00,20.00
16/03/2020,ROYAL MAIL CHARGES,A10833,Central Postages,Postages,1.50,1.50,.00,.00,.00,.00
16/03/2020,ROYAL MAIL CHARGES,A10833,Central Postages,Postages,1.50,1.50,.00,.00,.00,.00
18/03/2020,AMZNMktplace,A11338,Sconce & Devon Park,Contractual Services,64.96,77.95,.00,12.99,.00,20.00
18/03/2020,SP   LIVEBETTERWITH CA,A11338,Sconce & Devon Park,Contractual Services,29.94,29.94,.00,.00,.00,.00
18/03/2020,PAYPAL  GBGROUP PLC,A10814,Licensing Admin,Hackney Licence Costs,52.00,52.00,.00,.00,.00,.00
21/01/2020,ROYAL MAIL CHARGES,A10833,Central Postages,Postages,1.50,1.50,.00,.00,.00,.00
22/01/2020,ROYAL MAIL CHARGES,A10833,Central Postages,Postages,1.50,1.50,.00,.00,.00,.00
23/01/2020,NEWARK CASTLE TO,A10809,Customer Services,Travel And Subsistence,38.70,38.70,.00,.00,.00,.00
23/01/2020,WWW.PAXTON.CO.UK,A15003,Brunel Drive Depot,Repairs And Maintenance,463.20,463.20,.00,.00,.00,.00
24/02/2020,GARDEN WILDLIFE DIRECT,A11336,Vicar Water Park,Materials,15.99,15.99,.00,.00,.00,.00
24/02/2020,ROYAL MAIL CHARGES,A10833,Central Postages,Postages,1.50,1.50,.00,.00,.00,.00
24/02/2020,ROYAL MAIL CHARGES,A10833,Central Postages,Postages,1.50,1.50,.00,.00,.00,.00
28/02/2020,AMZNMktplace,A10814,Licensing Admin,Hackney Licence Costs,6.55,7.86,.00,1.31,.00,20.00
02/01/2020,WWW.ARCO.CO.UK,A11601,Planning Support,Clothing And Uniforms,53.30,63.96,53.30,10.66,.20,.00
03/03/2020,LNER WEB SALES,A11605,Planning Policy,Travel And Subsistence,185.00,185.00,.00,.00,.00,.00
10/02/2020,LNER WEB SALES,A11578,Town Centres Development,Travel And Subsistence,235.00,235.00,.00,.00,.00,.00
11/03/2020,LNER WEB SALES,A11578,Town Centres Development,Travel And Subsistence,-72.20,-72.20,.00,.00,.00,.00
13/01/2020,LNER WEB SALES,A11604,Area Planning,Travel And Subsistence,149.00,149.00,.00,.00,.00,.00
13/01/2020,LNER WEB SALES,A11604,Area Planning,Travel And Subsistence,19.00,19.00,.00,.00,.00,.00
13/01/2020,WWW.ARCO.CO.UK,A11604,Area Planning,Clothing And Uniforms,83.52,100.22,83.52,16.70,.20,.00
13/01/2020,WWW.ARCO.CO.UK,A11604,Area Planning,Clothing And Uniforms,374.06,448.87,374.06,74.81,.20,.00
17/02/2020,LNER WEB SALES,A11578,Town Centres Development,Travel And Subsistence,82.20,82.20,.00,.00,.00,.00
18/02/2020,The Knowledge Academy,A11601,Planning Support,Is Stock Consumables,99.00,118.80,.00,19.80,.00,20.00
27/01/2020,CULTURE LEARNING,A11604,Area Planning,Professional Services,30.00,30.00,.00,.00,.00,.00
07/02/2020,East Midlands Rail,A10864,Corporate Management Team,Travel And Subsistence,6.90,6.90,.00,.00,.00,.00
21/01/2020,East Midlands Rail,A10864,Corporate Management Team,Travel And Subsistence,32.70,32.70,.00,.00,.00,.00
21/01/2020,East Midlands Rail,A10215,Strategic Hsg (Was Community),Travel And Subsistence,65.40,65.40,.00,.00,.00,.00
23/03/2020,WWW.DIRECTBUILDINGPROD,A11930,Covid-19 Expenditure only,Office Equipment Purchase,1781.60,2137.92,.00,356.32,.00,20.00
03/03/2020,WWW.OFCOM.ORG.UK,A11126,Cctv,Cctv Operation,75.00,75.00,.00,.00,.00,.00
15/01/2020,SAFETYSIGNS,C54015,Vulnerable People,Other Equipment And Tools,21.95,26.34,.00,4.39,.00,20.00
15/01/2020,AMZNMKTPLACE AMAZON.CO,C54015,Vulnerable People,Other Equipment And Tools,23.20,27.84,.00,4.64,.00,20.00
17/03/2020,WILKO RETAIL LIMITED,A11126,Cctv,Cctv Operation,4.58,5.50,.00,.92,.00,20.00
17/03/2020,SAVERS HEALTH & BEAUTY,A11126,Cctv,Cctv Operation,3.50,4.20,.00,.70,.00,20.00
21/01/2020,SAFETYSIGNS,C54015,Vulnerable People,Other Equipment And Tools,95.40,114.48,.00,19.08,.00,20.00
13/02/2020,FS  SHIFTTOCLOUD,A10864,Corporate Management Team,Computer Software,98.62,98.62,.00,.00,.00,.00
17/02/2020,thetrainline.com,A10864,Corporate Management Team,Travel And Subsistence,238.60,238.60,.00,.00,.00,.00
18/03/2020,ICAEW,A10864,Corporate Management Team,Subscriptions,501.00,501.00,.00,.00,.00,.00
25/02/2020,HOTEL IBIS,A10864,Corporate Management Team,Travel And Subsistence,90.00,108.00,.00,18.00,.00,20.00
05/02/2020,ETI LTD,A10109,Heritage Culture and Visitors,Contractual Services,139.50,167.40,.00,27.90,.00,20.00
06/01/2020,WH SMITH,A10109,Heritage Culture and Visitors,Repairs And Maintenance,4.98,5.97,.00,.99,.00,20.00
10/02/2020,WWW.TILLROLLKING.CO.UK,A10109,Heritage Culture and Visitors,Cleaning Materials,39.98,47.98,.00,8.00,.00,20.00
17/02/2020,AMZNMKTPLACE AMAZON.CO,A10109,Heritage Culture and Visitors,Cleaning Materials,14.97,17.96,.00,2.99,.00,20.00
01/01/2020,MAILCHIMP    MONTHLY,A10109,Heritage Culture and Visitors,Advertising,65.36,65.36,.00,.00,.09,.00
01/02/2020,MAILCHIMP    MONTHLY,A10109,Heritage Culture and Visitors,Advertising,65.99,65.99,.00,.00,.09,.00
01/03/2020,MAILCHIMP    MONTHLY,A10109,Heritage Culture and Visitors,Advertising,67.30,67.30,.00,.00,.09,.00
08/01/2020,HALLMARK NEWARK,A10109,Heritage Culture and Visitors,Advertising,2.49,2.49,.00,.00,.00,.00
08/01/2020,POST OFFICE COUNTER,A10109,Heritage Culture and Visitors,Advertising,11.90,11.90,.00,.00,.00,.00
10/02/2020,FACEBK L2SFNU6DQ2,A10109,Heritage Culture and Visitors,Advertising,116.48,116.48,.00,.00,.00,.00
11/02/2020,Primeprint Newark Ltd,A10109,Heritage Culture and Visitors,Advertising,35.42,42.50,.00,7.08,.00,20.00
13/01/2020,ADOBE CREATIVE CLOUD,A10109,Heritage Culture and Visitors,Advertising,59.00,70.80,.00,11.80,.00,20.00
13/02/2020,ADOBE CREATIVE CLOUD,A10109,Heritage Culture and Visitors,Advertising,59.00,70.80,.00,11.80,.00,20.00
13/03/2020,ADOBE CREATIVE CLOUD,A10109,Heritage Culture and Visitors,Advertising,59.00,70.80,.00,11.80,.00,20.00
13/03/2020,FACEBK TQL8HSEDQ2,A10109,Heritage Culture and Visitors,Advertising,178.12,178.12,.00,.00,.00,.00
13/03/2020,Primeprint Newark Ltd,A10109,Heritage Culture and Visitors,Advertising,8.00,9.60,.00,1.60,.00,20.00
13/03/2020,Primeprint Newark Ltd,A10109,Heritage Culture and Visitors,Advertising,55.00,55.00,.00,.00,.00,.00
16/03/2020,WILKO RETAIL LIMITED,A10109,Heritage Culture and Visitors,Advertising,5.00,6.00,.00,1.00,.00,20.00
20/03/2020,ARGOS LTD,A10109,Heritage Culture and Visitors,Advertising,74.99,89.99,.00,15.00,.00,20.00
23/01/2020,OSBORNES NEWARK,A10109,Heritage Culture and Visitors,Advertising,3.74,4.49,.00,.75,.00,20.00
26/01/2020,FACEBK FFA9DU6DQ2,A10109,Heritage Culture and Visitors,Advertising,162.45,162.45,.00,.00,.00,.00
26/02/2020,FACEBK JDUA4S6EQ2,A10109,Heritage Culture and Visitors,Advertising,147.99,147.99,.00,.00,.00,.00
15/02/2020,AMZNMktplace,A10109,Heritage Culture and Visitors,Materials,65.98,65.98,.00,.00,.00,.00
23/01/2020,AMZNMKTPLACE AMAZON.CO,A10109,Heritage Culture and Visitors,Materials,83.97,83.97,.00,.00,.00,.00
09/01/2020,AMZNMktplace,A11002,Refuse Collection,Materials,18.48,18.48,.00,.00,.00,.00
24/03/2020,WE ONLY MOT NEWARK,A26901,Vehicle Pool Workshop,Materials,55.00,55.00,.00,.00,.00,.00
03/01/2020,RYANAIR,A10213,Housing Options,Prevention Fund,75.96,75.96,.00,.00,.00,.00
02/01/2020,WWW.CIPFA.ORG.UK,A10895,Financial Services,Subscriptions,332.00,332.00,.00,.00,.00,.00
07/02/2020,Oyster Auto-top up,A15028,Aggregated Budgets,Travel And Subsistence,20.00,20.00,.00,.00,.00,.00
07/02/2020,Oyster Auto-top up,A15028,Aggregated Budgets,Travel And Subsistence,20.00,20.00,.00,.00,.00,.00
10/02/2020,NEWARK CASTLE TO,A10895,Financial Services,Travel And Subsistence,11.20,11.20,.00,.00,.00,.00
17/01/2020,Oyster Auto-top up,A15028,Aggregated Budgets,Travel And Subsistence,20.00,20.00,.00,.00,.00,.00
23/01/2020,WWW.PAXTON.CO.UK,A15003,Brunel Drive Depot,Repairs And Maintenance,463.20,463.20,.00,.00,.00,.00
26/02/2020,WWW.PAXTON.CO.UK,A15003,Brunel Drive Depot,Repairs And Maintenance,463.20,463.20,.00,.00,.00,.00
30/12/2019,NEWARK CASTLE TO,A10895,Financial Services,Travel And Subsistence,47.50,47.50,.00,.00,.00,.00
05/03/2020,DISCLOSURE & BARRING,A10103,Museums Management,Professional Services,13.00,13.00,.00,.00,.00,.00
05/03/2020,DISCLOSURE & BARRING,A10812,Personnel Section,Disclosure & barring service,13.00,13.00,.00,.00,.00,.00
05/03/2020,DISCLOSURE & BARRING,A10812,Personnel Section,Disclosure & barring service,13.00,13.00,.00,.00,.00,.00
07/02/2020,DISCLOSURE & BARRING,A10103,Museums Management,Professional Services,13.00,13.00,.00,.00,.00,.00
07/02/2020,DISCLOSURE & BARRING,A10103,Museums Management,Professional Services,13.00,13.00,.00,.00,.00,.00
18/03/2020,DISCLOSURE & BARRING,A10812,Personnel Section,Disclosure & barring service,13.00,13.00,.00,.00,.00,.00
06/01/2020,TRINITY SQ CAR PARK UP,A10864,Corporate Management Team,Travel And Subsistence,6.60,6.60,.00,.00,.00,.00
08/03/2020,LACE MARKET CAR PARK U,A10864,Corporate Management Team,Travel And Subsistence,6.00,6.00,.00,.00,.00,.00
12/03/2020,LACE MARKET CAR PARK U,A10864,Corporate Management Team,Travel And Subsistence,6.50,6.50,.00,.00,.00,.00
28/02/2020,FEELING PECKISH NEWARK,A10864,Corporate Management Team,Travel And Subsistence,20.80,20.80,.00,.00,.00,.00
29/01/2020,CASA MAMMA,A10864,Corporate Management Team,Travel And Subsistence,91.25,91.25,.00,.00,.00,.00
29/01/2020,MARQUIS OF GRANBY,A10864,Corporate Management Team,Travel And Subsistence,16.80,16.80,.00,.00,.00,.00
29/01/2020,TFL TRAVEL CH,A10864,Corporate Management Team,Travel And Subsistence,7.20,7.20,.00,.00,.00,.00
02/02/2020,CO OP FOOD,N10101,Southwell Tr admin & ops,Vending Machine Provisions,13.20,13.20,.00,.00,.00,.00
05/03/2020,CO OP FOOD,N10101,Southwell Tr admin & ops,Vending Machine Provisions,13.20,13.20,.00,.00,.00,.00
06/03/2020,GBP PALLET TRUCK WAREH,N10101,Southwell Tr admin & ops,Other Equipment And Tools,209.00,250.80,.00,41.80,.00,20.00
10/02/2020,CO OP FOOD,N10101,Southwell Tr admin & ops,Vending Machine Provisions,13.20,13.20,.00,.00,.00,.00
10/03/2020,CO OP FOOD,N10101,Southwell Tr admin & ops,Vending Machine Provisions,13.20,13.20,.00,.00,.00,.00
11/01/2020,CO OP FOOD,N10101,Southwell Tr admin & ops,Vending Machine Provisions,13.20,13.20,.00,.00,.00,.00
15/01/2020,CO OP FOOD,N10101,Southwell Tr admin & ops,Vending Machine Provisions,10.55,10.55,.00,.00,.00,.00
15/02/2020,CO OP FOOD,N10101,Southwell Tr admin & ops,Vending Machine Provisions,17.60,17.60,.00,.00,.00,.00
16/03/2020,CO OP FOOD,N10101,Southwell Tr admin & ops,Vending Machine Provisions,13.20,13.20,.00,.00,.00,.00
18/02/2020,CO OP FOOD,N10101,Southwell Tr admin & ops,Vending Machine Provisions,13.20,13.20,.00,.00,.00,.00
19/01/2020,CO OP FOOD,N10101,Southwell Tr admin & ops,Vending Machine Provisions,13.20,13.20,.00,.00,.00,.00
24/01/2020,CO OP FOOD,N10101,Southwell Tr admin & ops,Vending Machine Provisions,13.20,13.20,.00,.00,.00,.00
28/01/2020,CO OP FOOD,N10101,Southwell Tr admin & ops,Vending Machine Provisions,17.60,17.60,.00,.00,.00,.00
28/01/2020,AJ BECKETT,N10101,Southwell Tr admin & ops,Other Equipment Maintenance,10.00,12.00,.00,2.00,.00,20.00
28/12/2019,CO OP FOOD,N10101,Southwell Tr admin & ops,Vending Machine Provisions,6.60,6.60,.00,.00,.00,.00
20/03/2020,SAVERS HEALTH & BEAUTY,A10809,Customer Services,Contractual Services,1.65,1.98,.00,.33,.00,20.00
24/03/2020,AMZNMKTPLACE AMAZON.CO,A10810,Communications & Cust Services,Professional Services,49.58,59.49,.00,9.91,.00,20.00
03/03/2020,CO OP FOOD,N10101,Southwell Tr admin & ops,Vending Machine Provisions,19.80,19.80,.00,.00,.00,.00
08/02/2020,CO OP FOOD,N10101,Southwell Tr admin & ops,Vending Machine Provisions,17.60,17.60,.00,.00,.00,.00
25/01/2020,CO OP FOOD,N10101,Southwell Tr admin & ops,Vending Machine Provisions,13.20,13.20,.00,.00,.00,.00
26/01/2020,WWW.DANCEWEARCENTR,N10101,Southwell Tr admin & ops,Equipment For Resale,478.00,478.00,.00,.00,.00,.00
03/03/2020,TIMPSON LTD,A10109,Heritage Culture and Visitors,Other Equipment And Tools,16.67,20.00,.00,3.33,.00,20.00
07/02/2020,F DONCASTER LTD,A10109,Heritage Culture and Visitors,Catering,89.94,89.94,.00,.00,.00,.00
07/02/2020,F DONCASTER LTD,A10109,Heritage Culture and Visitors,Catering,200.00,200.00,.00,.00,.00,.00
09/02/2020,AMZNMKTPLACE AMAZON.CO,A10109,Heritage Culture and Visitors,Other Equipment And Tools,129.16,154.99,.00,25.83,.00,20.00
12/02/2020,Amazon.co.uk VO2EP3SA5,A10109,Heritage Culture and Visitors,Other Equipment And Tools,44.16,52.99,.00,8.83,.00,20.00
16/01/2020,AMZNMktplace,A10109,Heritage Culture and Visitors,Other Equipment And Tools,60.37,72.45,.00,12.08,.00,20.00
16/03/2020,AMZNMktplace,A10109,Heritage Culture and Visitors,Other Equipment And Tools,14.92,17.90,.00,2.98,.00,20.00
17/01/2020,WWW.TOOLSTATION.COM,A10109,Heritage Culture and Visitors,Other Equipment And Tools,22.45,26.94,.00,4.49,.00,20.00
17/01/2020,F DONCASTER LTD,A10109,Heritage Culture and Visitors,Catering,58.10,58.10,.00,.00,.00,.00
17/01/2020,F DONCASTER LTD,A10109,Heritage Culture and Visitors,Catering,200.00,200.00,.00,.00,.00,.00
18/03/2020,F DONCASTER LTD,A10109,Heritage Culture and Visitors,Catering,118.08,118.08,.00,.00,.00,.00
18/03/2020,F DONCASTER LTD,A10109,Heritage Culture and Visitors,Catering,200.00,200.00,.00,.00,.00,.00
19/03/2020,FACEBK CKCLWRSDQ2,A10109,Heritage Culture and Visitors,Advertising,127.41,127.41,.00,.00,.00,.00
22/01/2020,BOOKER LIMITED LINCOLN,A10109,Heritage Culture and Visitors,Catering,50.49,60.59,.00,10.10,.00,20.00
24/01/2020,WM MORRISONS STORE,A10109,Heritage Culture and Visitors,Catering,3.00,3.00,.00,.00,.00,.00
24/01/2020,W BOYES & CO LTD NEWAR,A10109,Heritage Culture and Visitors,Other Equipment And Tools,3.32,3.98,.00,.66,.00,20.00
24/01/2020,WM MORRISONS STORE,A10109,Heritage Culture and Visitors,Catering,24.90,24.90,.00,.00,.00,.00
29/12/2019,WM MORRISONS STORE,A10109,Heritage Culture and Visitors,Licensed Bar Provisions,40.00,48.00,.00,8.00,.00,20.00
28/01/2020,TLC GROUP,A10217,Syrian resettlement scheme,Recharge Third Party,269.00,269.00,.00,.00,.00,.00
30/01/2020,THE SKILLS NETWORK,A10217,Syrian resettlement scheme,Recharge Third Party,207.50,249.00,.00,41.50,.00,20.00
10/02/2020,DISCLOSURE & BARRING,A10812,Personnel Section,Disclosure & barring service,13.00,13.00,.00,.00,.00,.00
10/02/2020,DISCLOSURE & BARRING,A10812,Personnel Section,Disclosure & barring service,13.00,13.00,.00,.00,.00,.00
31/01/2020,DISCLOSURE & BARRING,A10812,Personnel Section,Disclosure & barring service,13.00,13.00,.00,.00,.00,.00
31/01/2020,DISCLOSURE & BARRING,A10812,Personnel Section,Disclosure & barring service,13.00,13.00,.00,.00,.00,.00
31/01/2020,DISCLOSURE & BARRING,A10812,Personnel Section,Disclosure & barring service,13.00,13.00,.00,.00,.00,.00
02/03/2020,HTTP://WWW.ANTHONYCOLL,B20002,HRA - NSH Properties,Training Expenses,95.00,114.00,.00,19.00,.00,20.00
02/03/2020,LNER WEB SALES,B20002,HRA - NSH Properties,Training Expenses,66.30,66.30,.00,.00,.00,.00
02/03/2020,ASDA GROCERIES ONLINE,A11831,Castle House,Catering,42.00,42.00,.00,.00,.00,.00
03/01/2020,ASDA GROCERIES ONLINE,A11831,Castle House,Catering,43.00,43.00,.00,.00,.00,.00
03/02/2020,ASDA GROCERIES ONLINE,A11831,Castle House,Catering,49.00,49.00,.00,.00,.00,.00
03/03/2020,LNER WEB SALES,B20002,HRA - NSH Properties,Training Expenses,212.50,212.50,.00,.00,.00,.00
03/03/2020,PAYPAL  DIRECT BUIL EB,A11831,Castle House,Cleaning Materials,126.96,126.96,.00,.00,.00,.00
03/03/2020,SP   CUPSDIRECT UK,A11831,Castle House,Repairs And Maintenance,32.90,39.48,.00,6.58,.00,20.00
04/02/2020,NEWARK CASTLE TO,A10908,Housing Benefit Admin,Travel And Subsistence,60.20,60.20,.00,.00,.00,.00
04/03/2020,WWW.GOV.UK,A10908,Housing Benefit Admin,Publications,1.50,1.50,.00,.00,.00,.00
04/03/2020,ROYAL MAIL CHARGES,A10833,Central Postages,Postages,1.50,1.50,.00,.00,.00,.00
04/03/2020,WWW.LQM.CO.UK,A11135,Env Health Proactive,Web Registration/Telephone,30.00,36.00,.00,6.00,.00,20.00
05/03/2020,ASDA GROCERIES ONLINE,A11831,Castle House,Catering,42.40,42.40,.00,.00,.00,.00
06/01/2020,LNER WEB SALES,A10895,Financial Services,Travel And Subsistence,91.00,91.00,.00,.00,.00,.00
06/01/2020,PAYPAL  QUICKDRAWSU EB,A11337,Community Facilities Mgmt,Stationery,2.45,2.45,.00,.00,.00,.00
06/01/2020,LNER WEB SALES,A10904,Council Tax,Travel And Subsistence,143.50,143.50,.00,.00,.00,.00
06/01/2020,ROYAL MAIL CHARGES,A10833,Central Postages,Postages,2.00,2.00,.00,.00,.00,.00
06/02/2020,ASDA GROCERIES ONLINE,A11831,Castle House,Catering,77.82,77.82,.00,.00,.00,.00
06/02/2020,ASDA GROCERIES ONLINE,A11831,Castle House,Cleaning Materials,71.50,71.50,.00,.00,.00,.00
06/02/2020,ASDA GROCERIES ONLINE,A11831,Castle House,Cleaning Materials,-.50,-.50,.00,.00,.00,.00
07/01/2020,AMZNMktplace,A11135,Env Health Proactive,Stationery,3.74,4.49,.00,.75,.00,20.00
08/01/2020,WAITROSE 227,A11831,Castle House,Catering,12.16,12.16,.00,.00,.00,.00
09/01/2020,ASDA GROCERIES ONLINE,A11831,Castle House,Catering,55.20,55.20,.00,.00,.00,.00
09/03/2020,E.ON ENERGY SOLUTIONS,A10213,Housing Options,Hostel Management,16.16,16.16,.00,.00,.00,.00
09/03/2020,PAYPAL  DARSHANKAUR EB,A11442,Arts Development,Materials,12.95,12.95,.00,.00,.00,.00
10/01/2020,ASDA GROCERIES ONLINE,A11831,Castle House,Cleaning Materials,72.50,72.50,.00,.00,.00,.00
11/03/2020,AMZNMktplace,A10213,Housing Options,Hostel Management,21.84,21.84,.00,.00,.00,.00
13/01/2020,E.ON ENERGY SOLUTIONS,A10213,Housing Options,Hostel Management,9.01,9.01,.00,.00,.00,.00
13/01/2020,ROYAL MAIL CHARGES,A10833,Central Postages,Postages,1.50,1.50,.00,.00,.00,.00
14/01/2020,NOTTS COUNTY COUNCIL,A11110,National Assistance Act Burial,General Grants,11.00,11.00,.00,.00,.00,.00
14/01/2020,E.ON ENERGY SOLUTIONS,A10213,Housing Options,Hostel Management,10.56,10.56,.00,.00,.00,.00
14/01/2020,E.ON ENERGY SOLUTIONS,A10213,Housing Options,Hostel Management,9.63,9.63,.00,.00,.00,.00
14/01/2020,E.ON ENERGY SOLUTIONS,A10213,Housing Options,Hostel Management,24.24,24.24,.00,.00,.00,.00
16/01/2020,BALDERTON DRY CLEANERS,A11831,Castle House,Contractual Services,42.00,42.00,.00,.00,.00,.00
16/01/2020,LNER WEB SALES,A11135,Env Health Proactive,Travel And Subsistence,134.00,134.00,.00,.00,.00,.00
16/01/2020,LNER WEB SALES,A10810,Communications & Cust Services,Travel And Subsistence,118.00,118.00,.00,.00,.00,.00
16/03/2020,ASDA GROCERIES ONLINE,A11831,Castle House,Catering,51.90,51.90,.00,.00,.00,.00
16/03/2020,ASDA GROCERIES ONLINE,A11831,Castle House,Cleaning Materials,93.60,93.60,.00,.00,.00,.00
16/03/2020,ASDA GROCERIES ONLINE,A11831,Castle House,Cleaning Materials,-64.40,-64.40,.00,.00,.00,.00
17/02/2020,ROYAL MAIL CHARGES,A10833,Central Postages,Postages,1.50,1.50,.00,.00,.00,.00
17/02/2020,ASDA GROCERIES ONLINE,A11831,Castle House,Catering,40.25,40.25,.00,.00,.00,.00
17/02/2020,ASDA GROCERIES ONLINE,A11831,Castle House,Cleaning Materials,41.00,41.00,.00,.00,.00,.00
18/02/2020,Trainline,A10213,Housing Options,Travel And Subsistence,27.83,27.83,.00,.00,.00,.00
18/03/2020,ASDA GROCERIES ONLINE,A11831,Castle House,Catering,41.40,41.40,.00,.00,.00,.00
18/03/2020,ASDA GROCERIES ONLINE,A11831,Castle House,Cleaning Materials,112.80,112.80,.00,.00,.00,.00
18/03/2020,ASDA GROCERIES ONLINE,A11831,Castle House,Cleaning Materials,-92.00,-92.00,.00,.00,.00,.00
18/03/2020,ASDA GROCERIES ONLINE,A11831,Castle House,Catering,-4.40,-4.40,.00,.00,.00,.00
18/03/2020,WWW.WEPRINTLANYARDS.CO,B50000,HRA - Stategic Management,Professional Services,252.50,303.00,.00,50.50,.00,20.00
19/03/2020,AMZ Duoda,A10213,Housing Options,Hostel Management,-21.84,-21.84,.00,.00,.00,.00
20/01/2020,E.ON ENERGY SOLUTIONS,A10213,Housing Options,Hostel Management,21.44,21.44,.00,.00,.00,.00
20/01/2020,WWW.ARCO.CO.UK,A11122,Risk Management,Clothing And Uniforms,21.45,25.74,21.45,4.29,.20,.00
20/01/2020,LNER WEB SALES,A10818,Committee Section,Travel And Subsistence,70.40,70.40,.00,.00,.00,.00
20/01/2020,LNER WEB SALES,A10818,Committee Section,Travel And Subsistence,70.40,70.40,.00,.00,.00,.00
20/02/2020,ASDA GROCERIES ONLINE,A11831,Castle House,Catering,40.29,40.29,.00,.00,.00,.00
20/03/2020,PAYPAL  DARSHANKAUR EB,A11442,Arts Development,Materials,-12.95,-12.95,.00,.00,.00,.00
21/01/2020,ASDA GROCERIES ONLINE,A11831,Castle House,Catering,61.30,61.30,.00,.00,.00,.00
23/03/2020,WWW.WEPRINTLANYARDS.CO,A11930,Covid-19 Expenditure only,Professional Services,84.00,100.80,.00,16.80,.00,20.00
24/01/2020,ASDA GROCERIES ONLINE,A11831,Castle House,Catering,84.98,84.98,.00,.00,.00,.00
24/01/2020,ASDA GROCERIES ONLINE,A11831,Castle House,Catering,69.00,69.00,.00,.00,.00,.00
24/03/2020,BROXTOWE B/ORO CNC,A11902,Civic Expenses,Allowance,-74.00,-74.00,.00,.00,.00,.00
24/03/2020,AMZNMktplace,A11442,Arts Development,Contractual Services,20.79,24.95,.00,4.16,.00,20.00
26/02/2020,ASDA GROCERIES ONLINE,SA1033,Yorke Drive Regeneration programme,Catering,58.76,58.76,.00,.00,.00,.00
27/02/2020,PASTDUE CREDIT,A10213,Housing Options,Hostel Management,18.31,18.31,.00,.00,.00,.00
27/02/2020,BROXTOWE B/ORO CNC,A11902,Civic Expenses,Allowance,74.00,74.00,.00,.00,.00,.00
29/01/2020,ROYAL MAIL CHARGES,A10833,Central Postages,Postages,1.50,1.50,.00,.00,.00,.00
30/01/2020,WWW.ARCO.CO.UK,A12001,Car Parks & Markets Admin,Clothing And Uniforms,38.01,45.61,38.01,7.60,.20,.00
05/03/2020,BUILDBASE NEWARK,A11002,Refuse Collection,Materials,32.50,39.00,.00,6.50,.00,.00
13/03/2020,SCREWFIX NEWARK,A11104,Street Sweeping,Clothing And Uniforms,188.93,188.93,.00,.00,.00,.00
23/03/2020,SCREWFIX NEWARK,A11104,Street Sweeping,Clothing And Uniforms,46.98,46.98,.00,.00,.00,.00
03/03/2020,SELECTA TYRE,A26901,Vehicle Pool Workshop,Materials,253.67,304.41,.00,50.74,.00,20.00
05/02/2020,DVSA,A26901,Vehicle Pool Workshop,Materials,410.00,410.00,.00,.00,.00,.00
06/01/2020,DVLA VEHICLE TAX,A26901,Vehicle Pool Workshop,Licences & M.O.T.'S,262.50,262.50,.00,.00,.00,.00
06/01/2020,DVLA VEHICLE TAX,A26901,Vehicle Pool Workshop,Licences & M.O.T.'S,262.50,262.50,.00,.00,.00,.00
06/01/2020,DVLA VEHICLE TAX,A26901,Vehicle Pool Workshop,Licences & M.O.T.'S,262.50,262.50,.00,.00,.00,.00
06/01/2020,DVLA VEHICLE TAX,A26901,Vehicle Pool Workshop,Licences & M.O.T.'S,262.50,262.50,.00,.00,.00,.00
06/01/2020,DVLA VEHICLE TAX,A26901,Vehicle Pool Workshop,Licences & M.O.T.'S,262.50,262.50,.00,.00,.00,.00
06/01/2020,DVLA VEHICLE TAX,A26901,Vehicle Pool Workshop,Licences & M.O.T.'S,262.50,262.50,.00,.00,.00,.00
06/01/2020,DVLA VEHICLE TAX,A26901,Vehicle Pool Workshop,Licences & M.O.T.'S,262.50,262.50,.00,.00,.00,.00
06/01/2020,DVLA VEHICLE TAX,A26901,Vehicle Pool Workshop,Licences & M.O.T.'S,617.50,617.50,.00,.00,.00,.00
06/01/2020,DVLA VEHICLE TAX,A26901,Vehicle Pool Workshop,Licences & M.O.T.'S,262.50,262.50,.00,.00,.00,.00
06/03/2020,SELECTA TYRE,A26901,Vehicle Pool Workshop,Materials,100.35,120.42,.00,20.07,.00,20.00
07/02/2020,DVLA VEHICLE TAX,A26901,Vehicle Pool Workshop,Licences & M.O.T.'S,167.50,167.50,.00,.00,.00,.00
07/02/2020,DVLA VEHICLE TAX,A26901,Vehicle Pool Workshop,Licences & M.O.T.'S,262.50,262.50,.00,.00,.00,.00
07/02/2020,DVLA VEHICLE TAX,A26901,Vehicle Pool Workshop,Licences & M.O.T.'S,262.50,262.50,.00,.00,.00,.00
07/02/2020,DVLA VEHICLE TAX,A26901,Vehicle Pool Workshop,Licences & M.O.T.'S,262.50,262.50,.00,.00,.00,.00
07/02/2020,DVLA VEHICLE TAX,A26901,Vehicle Pool Workshop,Licences & M.O.T.'S,262.50,262.50,.00,.00,.00,.00
07/02/2020,DVLA VEHICLE TAX,A26901,Vehicle Pool Workshop,Licences & M.O.T.'S,262.50,262.50,.00,.00,.00,.00
07/02/2020,DVLA VEHICLE TAX,A26901,Vehicle Pool Workshop,Licences & M.O.T.'S,262.50,262.50,.00,.00,.00,.00
10/01/2020,RONTEC MUCKLEY COR,A26901,Vehicle Pool Workshop,Petrol And Diesel,87.94,105.53,.00,17.59,.00,20.00
11/03/2020,DVLA VEHICLE TAX,A26901,Vehicle Pool Workshop,Licences & M.O.T.'S,262.50,262.50,.00,.00,.00,.00
11/03/2020,DVLA VEHICLE TAX,A26901,Vehicle Pool Workshop,Licences & M.O.T.'S,262.50,262.50,.00,.00,.00,.00
11/03/2020,DVLA VEHICLE TAX,A26901,Vehicle Pool Workshop,Licences & M.O.T.'S,262.50,262.50,.00,.00,.00,.00
11/03/2020,DVLA VEHICLE TAX,A26901,Vehicle Pool Workshop,Licences & M.O.T.'S,262.50,262.50,.00,.00,.00,.00
11/03/2020,DVLA VEHICLE TAX,A26901,Vehicle Pool Workshop,Licences & M.O.T.'S,262.50,262.50,.00,.00,.00,.00
11/03/2020,DVLA VEHICLE TAX,A26901,Vehicle Pool Workshop,Licences & M.O.T.'S,262.50,262.50,.00,.00,.00,.00
11/03/2020,DVLA VEHICLE TAX,A26901,Vehicle Pool Workshop,Licences & M.O.T.'S,262.50,262.50,.00,.00,.00,.00
11/03/2020,DVLA VEHICLE TAX,A26901,Vehicle Pool Workshop,Licences & M.O.T.'S,262.50,262.50,.00,.00,.00,.00
11/03/2020,DVLA VEHICLE TAX,A26901,Vehicle Pool Workshop,Licences & M.O.T.'S,262.50,262.50,.00,.00,.00,.00
12/03/2020,WE ONLY MOT NEWARK,A26901,Vehicle Pool Workshop,Materials,55.00,55.00,.00,.00,.00,.00
17/02/2020,CARTRIDGEPEOPLE.COM,A26901,Vehicle Pool Workshop,Materials,25.35,30.42,.00,5.07,.00,20.00
29/01/2020,THE RANGE-NEWARK,A26901,Vehicle Pool Workshop,Materials,3.33,4.00,.00,.67,.00,20.00
29/01/2020,PAYPAL  EJSUPEBAY,A26901,Vehicle Pool Workshop,Materials,163.45,196.14,.00,32.69,.00,20.00
31/01/2020,SCREWFIX NEWARK,A15003,Brunel Drive Depot,Materials,6.83,8.20,.00,1.37,.00,20.00
03/03/2020,HI PORTSMOUTH - RE,A11573,Promotion Of Tourism,Travel And Subsistence,79.17,95.00,.00,15.83,.00,20.00
13/02/2020,FACEBK  PQL23RWLU2,A11573,Promotion Of Tourism,Advertising,17.00,17.00,.00,.00,.00,.00
13/03/2020,FACEBK  TFAKHRJLU2,A11573,Promotion Of Tourism,Advertising,84.00,84.00,.00,.00,.00,.00
14/02/2020,FACEBK  56FV5S6MU2,A11573,Promotion Of Tourism,Advertising,17.00,17.00,.00,.00,.00,.00
14/02/2020,FACEBK  NB7R5S6MU2,A11573,Promotion Of Tourism,Advertising,17.00,17.00,.00,.00,.00,.00
14/02/2020,FACEBK  PZSZCR2MU2,A11573,Promotion Of Tourism,Advertising,25.00,25.00,.00,.00,.00,.00
15/02/2020,FACEBK  BFWWZQJLU2,A11573,Promotion Of Tourism,Advertising,40.00,40.00,.00,.00,.00,.00
15/02/2020,FACEBK  CU2M3RALU2,A11573,Promotion Of Tourism,Advertising,25.00,25.00,.00,.00,.00,.00
16/02/2020,FACEBK  WW2F2RJLU2,A11573,Promotion Of Tourism,Advertising,60.00,60.00,.00,.00,.00,.00
16/03/2020,East Midlands Rail,A11573,Promotion Of Tourism,Travel And Subsistence,6.90,6.90,.00,.00,.00,.00
17/01/2020,LNER WEB SALES,A11573,Promotion Of Tourism,Training Expenses,82.45,82.45,.00,.00,.00,.00
18/02/2020,FACEBK  4ZQGBRNLU2,A11573,Promotion Of Tourism,Advertising,90.00,90.00,.00,.00,.00,.00
20/01/2020,FACEBK MG6PVPA3V2,A11573,Promotion Of Tourism,Advertising,38.77,38.77,.00,.00,.00,.00
20/02/2020,FACEBK  7UNN9S6MU2,A11573,Promotion Of Tourism,Advertising,125.00,125.00,.00,.00,.00,.00
31/12/2019,FACEBK 9F2QPQA4V2,A11573,Promotion Of Tourism,Advertising,200.00,200.00,.00,.00,.00,.00
02/01/2020,TNT DIRECT WL,A10819,Legal Section,Postages,15.26,18.31,.00,3.05,.00,20.00
02/02/2020,Amazon.co.uk 4M1SR2UV5,A11135,Env Health Proactive,Clothing And Uniforms,24.80,29.76,.00,4.96,.00,20.00
03/01/2020,ROYAL MAIL CHARGES,A10833,Central Postages,Contractual Services,1.50,1.50,.00,.00,.00,.00
03/01/2020,THE BRIDGE GROCERY,A10213,Housing Options,Recharge Third Party,20.00,20.00,.00,.00,.00,.00
03/01/2020,THE BRIDGE GROCERY,A10213,Housing Options,Recharge Third Party,20.00,20.00,.00,.00,.00,.00
03/01/2020,THE BRIDGE GROCERY,A10213,Housing Options,Recharge Third Party,20.00,20.00,.00,.00,.00,.00
03/01/2020,THE BRIDGE GROCERY,A10213,Housing Options,Recharge Third Party,20.00,20.00,.00,.00,.00,.00
03/03/2020,ONLINE SHOP,A10841,Central Personnel Expenses,Internal Training,700.00,700.00,.00,.00,.00,.00
03/03/2020,WWW.ARCO.CO.UK,A10213,Housing Options,Clothing And Uniforms,44.00,52.80,.00,8.80,.00,20.00
04/03/2020,LNER WEB SALES,B20002,HRA - NSH Properties,Training Expenses,212.50,212.50,.00,.00,.00,.00
04/03/2020,ASDA GROCERIES ONLINE,A12510,Democratic Representation,Catering,42.90,42.90,.00,.00,.00,.00
04/03/2020,AIR QUALITY NEWS,A10841,Central Personnel Expenses,Internal Training,145.00,174.00,.00,29.00,.00,20.00
05/02/2020,CABCARD SERVICES U,B20022,HRA - Taxi Fare,Travel And Subsistence,63.40,63.40,.00,.00,.00,.00
05/03/2020,LNER WEB SALES,A11844,Corporate Development,Travel And Subsistence,49.50,49.50,.00,.00,.00,.00
07/01/2020,NEWARK CASTLE TO,A11844,Corporate Development,Travel And Subsistence,49.10,49.10,.00,.00,.00,.00
07/02/2020,TNT DIRECT WL,A10891,Finance Management & Admin,Postages,24.35,29.22,.00,4.87,.00,20.00
08/01/2020,ABLEWORLD NEWARK,A10213,Housing Options,Health And Safety,559.00,559.00,.00,.00,.00,.00
08/01/2020,STAMFORD&GUILDHAL ARTS,A11902,Civic Expenses,Allowance,35.00,35.00,.00,.00,.00,.00
09/01/2020,AMZNMktplace,A10213,Housing Options,Hostel Management,9.57,11.48,.00,1.91,.00,20.00
09/03/2020,LNER WEB SALES,A11844,Corporate Development,Travel And Subsistence,70.00,70.00,.00,.00,.00,.00
09/03/2020,ASDA GROCERIES ONLINE,A11831,Castle House,Catering,42.00,42.00,.00,.00,.00,.00
09/03/2020,ASDA GROCERIES ONLINE,A11831,Castle House,Catering,44.00,44.00,.00,.00,.00,.00
10/01/2020,NEWARK CASTLE TO,A10213,Housing Options,Travel And Subsistence,297.80,297.80,.00,.00,.00,.00
10/01/2020,WWW.BPP.COM,A10895,Financial Services,Contractual Services,25.80,25.80,.00,.00,.00,.00
10/02/2020,ASDA GROCERIES ONLINE,A11831,Castle House,Catering,49.00,49.00,.00,.00,.00,.00
10/03/2020,AMZNMktplace,A11831,Castle House,Catering,4.16,4.99,.00,.83,.00,20.00
10/03/2020,Amazon.co.uk 6I3DO3PS5,A11831,Castle House,Catering,13.32,15.99,.00,2.67,.00,20.00
11/03/2020,CABCARD SERVICES U,B20002,HRA - NSH Properties,Travel And Subs For Site Mtgs,32.60,32.60,.00,.00,.00,.00
12/03/2020,AMZNMktplace,A11135,Env Health Proactive,Cleaning Materials,38.31,45.97,.00,7.66,.00,20.00
12/03/2020,WWW.ARCO.CO.UK,A12001,Car Parks & Markets Admin,Clothing And Uniforms,121.80,146.16,121.80,24.36,.20,.00
13/01/2020,ASDA GROCERIES ONLINE,A11831,Castle House,Catering,59.00,59.00,.00,.00,.00,.00
13/02/2020,ROYAL MAIL CHARGES,A10833,Central Postages,Postages,1.50,1.50,.00,.00,.00,.00
13/02/2020,ROYAL MAIL CHARGES,A10833,Central Postages,Postages,1.50,1.50,.00,.00,.00,.00
13/02/2020,ROYAL MAIL CHARGES,A10833,Central Postages,Postages,1.50,1.50,.00,.00,.00,.00
13/02/2020,CABCARD SERVICES U,B20022,HRA - Taxi Fare,Travel And Subsistence,109.30,109.30,.00,.00,.00,.00
13/02/2020,LNER WEB SALES,A11844,Corporate Development,Travel And Subsistence,78.10,78.10,.00,.00,.00,.00
13/02/2020,E.ON ENERGY SOLUTIONS,A10213,Housing Options,Hostel Management,22.44,22.44,.00,.00,.00,.00
13/02/2020,ASDA GROCERIES ONLINE,A11831,Castle House,Catering,46.00,46.00,.00,.00,.00,.00
13/03/2020,E.ON ENERGY SOLUTIONS,A10213,Housing Options,Hostel Management,10.87,10.87,.00,.00,.00,.00
14/02/2020,LNER WEB SALES,A10213,Housing Options,Travel And Subsistence,160.50,160.50,.00,.00,.00,.00
14/02/2020,PAYPAL  HEADINGPOWE,A11831,Castle House,Contractual Services,82.58,99.10,.00,16.52,.00,20.00
14/02/2020,CABCARD SERVICES U,B20022,HRA - Taxi Fare,Travel And Subsistence,16.60,16.60,.00,.00,.00,.00
15/03/2020,Amazon.co.uk TO27M4SA5,B20010,HRA - Strategic Management,Miscellaneous Expenses,17.46,20.95,.00,3.49,.00,20.00
16/01/2020,thetrainline.com,A10213,Housing Options,Travel And Subsistence,37.65,37.65,.00,.00,.00,.00
16/01/2020,ASDA GROCERIES ONLINE,A11831,Castle House,Catering,60.50,60.50,.00,.00,.00,.00
16/01/2020,ASDA GROCERIES ONLINE,A11831,Castle House,Catering,60.00,60.00,.00,.00,.00,.00
16/02/2020,AMZNMktplace,B20010,Housing Strategic Management,Miscellaneous Expenses,205.34,246.41,.00,41.07,.00,20.00
17/01/2020,LNER WEB SALES,A10904,Council Tax,Travel And Subsistence,17.10,17.10,.00,.00,.00,.00
17/01/2020,LNER WEB SALES,A11844,Corporate Development,Travel And Subsistence,78.10,78.10,.00,.00,.00,.00
17/01/2020,WAITROSE 227,A11831,Castle House,Catering,40.20,40.20,.00,.00,.00,.00
17/01/2020,WAITROSE 227,A10864,Corporate Management Team,Catering,10.50,10.50,.00,.00,.00,.00
18/02/2020,LCL CO OP,A10213,Housing Options,Hostel Management,20.00,20.00,.00,.00,.00,.00
18/02/2020,LCL CO OP,A10213,Housing Options,Hostel Management,20.00,20.00,.00,.00,.00,.00
18/02/2020,LCL CO OP,A10213,Housing Options,Hostel Management,20.00,20.00,.00,.00,.00,.00
18/02/2020,LCL CO OP,A10213,Housing Options,Hostel Management,20.00,20.00,.00,.00,.00,.00
18/03/2020,WWW.SIGN-HOLDERS.CO.UK,A11338,Sconce & Devon Park,Contractual Services,79.94,95.93,.00,15.99,.00,20.00
19/02/2020,AMZNMktplace,B20010,Housing Strategic Management,Miscellaneous Expenses,49.95,59.94,.00,9.99,.00,20.00
20/02/2020,CABCARD SERVICES U,B20022,HRA - Taxi Fare,Travel And Subsistence,112.00,112.00,.00,.00,.00,.00
20/03/2020,ONLINE SHOP,A10841,Central Personnel Expenses,Internal Training,-700.00,-700.00,.00,.00,.00,.00
22/01/2020,LNER WEB SALES,A11135,Env Health Proactive,Travel And Subsistence,-74.00,-74.00,.00,.00,.00,.00
23/02/2020,Amazon.co.uk T29ZW51W5,A11136,Env Health Reactive,Office Equipment Purchase,52.46,62.95,.00,10.49,.00,20.00
24/01/2020,WWW.ARCO.CO.UK,A12001,Car Parks & Markets Admin,Clothing And Uniforms,47.10,56.52,47.10,9.42,.20,.00
24/01/2020,WWW.ARCO.CO.UK,A12001,Car Parks & Markets Admin,Clothing And Uniforms,9.98,11.98,9.98,2.00,.20,.00
24/02/2020,ASDA GROCERIES ONLINE,A11831,Castle House,Catering,41.83,41.83,.00,.00,.00,.00
24/02/2020,ASDA GROCERIES ONLINE,A11831,Castle House,Catering,41.67,41.67,.00,.00,.00,.00
24/03/2020,ASDA GROCERIES ONLINE,A11831,Castle House,Catering,52.40,52.40,.00,.00,.00,.00
24/03/2020,ASDA GROCERIES ONLINE,A11831,Castle House,Catering,-6.90,-6.90,.00,.00,.00,.00
26/03/2020,E.ON ENERGY SOLUTIONS,A10213,Housing Options,Hostel Management,39.43,39.43,.00,.00,.00,.00
27/01/2020,ASDA GROCERIES ONLINE,A11831,Castle House,Catering,49.00,49.00,.00,.00,.00,.00
27/02/2020,CABCARD SERVICES U,B20022,HRA -  Tenancy & Estates,Travel And Subsistence,58.80,58.80,.00,.00,.00,.00
27/02/2020,ASDA GROCERIES ONLINE,A11831,Castle House,Catering,44.36,44.36,.00,.00,.00,.00
27/02/2020,E.ON ENERGY SOLUTIONS,A10213,Housing Options,Hostel Management,12.73,12.73,.00,.00,.00,.00
27/12/2019,ASDA GROCERIES ONLINE,A11831,Castle House,Catering,43.00,43.00,.00,.00,.00,.00
28/02/2020,LNER WEB SALES,B20002,HRA - NSH Properties,Training Expenses,123.50,123.50,.00,.00,.00,.00
29/01/2020,WWW.ARCO.CO.UK,A12001,Car Parks & Markets Admin,Clothing And Uniforms,24.36,29.23,24.36,4.87,.20,.00
30/01/2020,E.ON ENERGY SOLUTIONS,A10213,Housing Options,Hostel Management,13.91,14.61,.00,.70,.00,5.00
30/01/2020,ASDA GROCERIES ONLINE,A11831,Castle House,Catering,71.90,71.90,.00,.00,.00,.00
30/01/2020,ASDA GROCERIES ONLINE,A11831,Castle House,Catering,48.76,48.76,.00,.00,.00,.00
30/12/2019,ROYAL MAIL CHARGES,A10833,Central Postages,Postages,1.50,1.50,.00,.00,.00,.00
30/12/2019,ROYAL MAIL CHARGES,A10833,Central Postages,Postages,1.50,1.50,.00,.00,.00,.00
31/01/2020,AMZNMktplace,A11135,Env Health Proactive,Computer Equipment Purchase,2.42,2.90,.00,.48,.00,20.00
31/12/2019,ROYAL MAIL CHARGES,A10833,Central Postages,Postages,1.50,1.50,.00,.00,.00,.00
05/03/2020,AMZNMktplace,A10109,Heritage Culture and Visitors,Promotion Of Events,16.65,19.98,.00,3.33,20.00,20.00
05/03/2020,WWW.OFFICEFURNITUREONL,A10109,Heritage Culture and Visitors,Promotion Of Events,59.00,70.80,.00,11.80,.00,20.00
09/01/2020,Premier Farnell,A10109,Heritage Culture and Visitors,Promotion Of Events,22.51,22.51,.00,.00,.00,.00
13/02/2020,W BOYES & CO LTD NEWAR,A10109,Heritage Culture and Visitors,Promotion Of Events,24.58,29.50,.00,4.92,.00,20.00
13/02/2020,LANYARDS TOMORROW,A10109,Heritage Culture and Visitors,Promotion Of Events,29.46,35.35,.00,5.89,.00,20.00
14/02/2020,THE RANGE-NEWARK,A10109,Heritage Culture and Visitors,Promotion Of Events,31.23,37.48,.00,6.25,.00,20.00
17/03/2020,W BOYES & CO LTD NEWAR,A10109,Heritage Culture and Visitors,Promotion Of Events,4.75,5.70,.00,.95,.00,20.00
18/03/2020,Primeprint Newark Ltd,A10109,Heritage Culture and Visitors,Advertising,65.00,78.00,.00,13.00,.00,20.00
20/01/2020,OSBORNES NEWARK,A10109,Heritage Culture and Visitors,Promotion Of Events,23.32,27.99,.00,4.67,.00,20.00
21/01/2020,POST OFFICE COUNTER,A10109,Heritage Culture and Visitors,Promotion Of Events,305.00,305.00,.00,.00,.00,.00
21/01/2020,MAX SPIELMANN LTD,A10109,Heritage Culture and Visitors,Promotion Of Events,20.83,25.00,.00,4.17,.00,20.00
27/01/2020,LNE RAILWAY NNG STN,A10109,Heritage Culture and Visitors,Promotion Of Events,27.40,27.40,.00,.00,.00,.00
02/03/2020,LCL CO OP,A10213,Housing Options,Recharge Third Party,20.00,20.00,.00,.00,.00,.00
02/03/2020,LCL CO OP,A10213,Housing Options,Recharge Third Party,20.00,20.00,.00,.00,.00,.00
02/03/2020,VIRTUAL COLLEGE LIMITE,C54495,Food Environment Grant,Contractual Services,12.00,14.40,.00,2.40,.00,20.00
04/02/2020,LCL CO OP,A10213,Housing Options,Recharge Third Party,20.00,20.00,.00,.00,.00,.00
09/01/2020,CURRYS ONLINE,A10213,Housing Options,Recharge Third Party,288.00,288.00,.00,.00,.00,.00
09/03/2020,Primeprint Newark Ltd,A11442,Arts Development,Promotion Of Events,46.00,46.00,.00,.00,.00,.00
11/02/2020,THE BRIDGE GROCERY,A10213,Housing Options,Recharge Third Party,20.00,20.00,.00,.00,.00,.00
11/03/2020,ALDI,C54495,Food Environment Grant,Contractual Services,3.49,3.49,.00,.00,.00,.00
12/02/2020,THE BRIDGE GROCERY,A10213,Housing Options,Recharge Third Party,30.00,30.00,.00,.00,.00,.00
12/02/2020,THE BRIDGE GROCERY,A10213,Housing Options,Recharge Third Party,30.00,30.00,.00,.00,.00,.00
13/03/2020,THE BRIDGE GROCERY,A10213,Housing Options,Recharge Third Party,141.00,141.00,.00,.00,.00,.00
13/03/2020,WILKO RETAIL LIMITED,A10213,Housing Options,Recharge Third Party,226.50,226.50,.00,.00,.00,.00
14/01/2020,THE BRIDGE GROCERY,A10213,Housing Options,Recharge Third Party,20.00,20.00,.00,.00,.00,.00
14/01/2020,THE BRIDGE GROCERY,A10213,Housing Options,Recharge Third Party,20.00,20.00,.00,.00,.00,.00
17/01/2020,ARGOS LTD,A11442,Arts Development,Promotion Of Events,109.73,109.73,.00,.00,.00,.00
18/03/2020,LEISURE CONTROLS I,A10213,Housing Options,Recharge Third Party,104.00,124.80,.00,20.80,.00,20.00
19/02/2020,SCREWFIX NEWARK,A11928,Newark Flooding,Contractual Services,49.98,59.97,.00,9.99,.00,20.00
19/03/2020,THE HELPING HAND COMPA,A11442,Arts Development,Parish Cncls And Vol Bodies,251.50,301.80,.00,50.30,.00,20.00
23/03/2020,DEINCOURT HOTEL,A10213,Housing Options,Bed And Breakfast,202.00,202.00,.00,.00,.00,.00
25/02/2020,THE BRIDGE GROCERY,A10213,Housing Options,Recharge Third Party,20.00,20.00,.00,.00,.00,.00
25/02/2020,THE BRIDGE GROCERY,A10213,Housing Options,Recharge Third Party,20.00,20.00,.00,.00,.00,.00
26/03/2020,ALDI,A11931,HART - Community Response Items,Miscellaneous Expenses,20.29,20.29,.00,.00,.00,.00
26/03/2020,ALDI,A11931,HART - Community Response Items,Miscellaneous Expenses,19.35,19.35,.00,.00,.00,.00
26/03/2020,WILKO RETAIL LIMITED,A11930,Covid-19 Expenditure only,Miscellaneous Expenses,117.00,140.40,.00,23.40,.00,20.00
26/03/2020,THE BRIDGE GROCERY,A11930,Covid-19 Expenditure only,Miscellaneous Expenses,20.00,20.00,.00,.00,.00,.00
28/01/2020,THE BRIDGE GROCERY,A10213,Housing Options,Recharge Third Party,20.00,20.00,.00,.00,.00,.00
01/02/2020,Amazon.co.uk 2Q21B3DF5,A10864,Corporate Management Team,Course Fees,45.14,45.14,.00,.00,.00,.00
02/03/2020,WWW.SOLACE.ORG.UK,A10864,Corporate Management Team,Course Fees,225.00,270.00,.00,45.00,.00,20.00
05/02/2020,Photobox Limited,A11902,Civic Expenses,Other Expenses,5.58,6.69,.00,1.11,.00,20.00
05/02/2020,WILKO RETAIL LIMITED,A11902,Civic Expenses,Other Expenses,4.58,5.50,.00,.92,.00,20.00
05/02/2020,AMZNMKTPLACE AMAZON.CO,A11902,Civic Expenses,Other Expenses,14.96,14.96,.00,.00,.00,.00
10/01/2020,WWW.LOCAL.GOV.UK,A10864,Corporate Management Team,Course Fees,349.00,418.80,.00,69.80,.00,20.00
11/03/2020,NEWARK CASTLE TO,A10864,Corporate Management Team,Travel And Subsistence,300.80,300.80,.00,.00,.00,.00
13/01/2020,WAITROSE 227,A10864,Corporate Management Team,Catering,3.68,3.68,.00,.00,.00,.00
18/03/2020,WWW.ROYALIMAGES.CO.UK,A11902,Civic Expenses,Other Expenses,154.00,184.80,.00,30.80,.00,20.00
20/01/2020,LNER WEB SALES,A10864,Corporate Management Team,Travel And Subsistence,201.00,201.00,.00,.00,.00,.00
21/01/2020,LNER WEB SALES,A10864,Corporate Management Team,Travel And Subsistence,318.00,318.00,.00,.00,.00,.00
27/01/2020,NEWARK CASTLE TO,A10864,Corporate Management Team,Travel And Subsistence,63.40,63.40,.00,.00,.00,.00
27/01/2020,POINT A HOTEL,A10864,Corporate Management Team,Travel And Subsistence,268.20,268.20,.00,.00,.00,.00
06/03/2020,WWW.EASYEQUIPMENT.COM,A12014,Lorry Park,Repairs And Maintenance,571.99,686.39,.00,114.40,.00,20.00
07/01/2020,WWW.PROFESSIONALBOOKS.,A11841,Corporate Property,Publications,65.07,78.08,.00,13.01,.00,20.00
27/01/2020,ZAFETY SUPPLIES LTD,A11831,Castle House,Repairs And Maintenance,41.95,50.34,.00,8.39,.00,20.00
31/12/2019,SCREWFIX DIRECT,A11841,Corporate Property,Other Equipment And Tools,20.79,24.95,.00,4.16,.00,20.00
02/01/2020,XLN TELECOM LTD,N10101,Southwell Tr admin & ops,Telephones,65.44,78.53,.00,13.09,.00,20.00
03/02/2020,MANSFIELD1307,N10101,Southwell Tr admin & ops,Other Equipment And Tools,109.98,109.98,.00,.00,.00,.00
03/02/2020,BOOKER LIMITED MANSFIE,N10101,Southwell Tr admin & ops,Meals,40.94,40.94,.00,.00,.00,.00
03/02/2020,XLN TELECOM LTD,N10101,Southwell Tr admin & ops,Telephones,65.44,78.53,.00,13.09,.00,20.00
03/03/2020,XLN TELECOM LTD,N10101,Southwell Tr admin & ops,Telephones,65.44,78.53,.00,13.09,.00,20.00
04/02/2020,CO OP FOOD,N10101,Southwell Tr admin & ops,Vending Machine Provisions,13.20,13.20,.00,.00,.00,.00
04/03/2020,Amazon.co.uk SV39X4SJ5,N10101,Southwell Tr admin & ops,Other Equipment And Tools,19.49,19.49,.00,.00,.00,.00
06/03/2020,POST OFFICE COUNTER,N10101,Southwell Tr admin & ops,Postages,89.33,89.33,.00,.00,.00,.00
07/01/2020,CO OP FOOD,N10101,Southwell Tr admin & ops,Vending Machine Provisions,22.80,22.80,.00,.00,.00,.00
07/03/2020,CO OP FOOD,N10101,Southwell Tr admin & ops,Vending Machine Provisions,13.20,13.20,.00,.00,.00,.00
09/01/2020,CO OP FOOD,N10101,Southwell Tr admin & ops,Vending Machine Provisions,13.20,13.20,.00,.00,.00,.00
09/03/2020,Amazon.co.uk CO1KA8A55,N10101,Southwell Tr admin & ops,Other Equipment And Tools,16.53,16.53,.00,.00,.00,.00
13/02/2020,SWIMMING TEACHERS ASSO,N10101,Southwell Tr admin & ops,Equipment badges,274.00,274.00,.00,.00,.00,.00
13/02/2020,CO OP FOOD,N10101,Southwell Tr admin & ops,Vending Machine Provisions,13.20,13.20,.00,.00,.00,.00
13/03/2020,J P LENNARD LTD,N10101,Southwell Tr admin & ops,Equipment For Resale,331.62,331.62,.00,.00,.00,.00
13/03/2020,CO OP FOOD,N10101,Southwell Tr admin & ops,Vending Machine Provisions,13.20,13.20,.00,.00,.00,.00
16/01/2020,CO OP FOOD,N10101,Southwell Tr admin & ops,Vending Machine Provisions,13.20,13.20,.00,.00,.00,.00
19/03/2020,QUADRANT EPP UK LTD,N10101,Southwell Tr admin & ops,Other Equipment Maintenance,533.45,640.14,.00,106.69,.00,20.00
22/01/2020,CO OP FOOD,N10101,Southwell Tr admin & ops,Vending Machine Provisions,13.20,13.20,.00,.00,.00,.00
23/01/2020,CURRYS,N10101,Southwell Tr admin & ops,Is Stock Consumables,309.00,309.00,.00,.00,.00,.00
25/03/2020,PAYPAL  KAROLDEENEY EB,N10101,Southwell Tr admin & ops,Other Equipment Maintenance,54.99,54.99,.00,.00,.00,.00
25/03/2020,ASDA  STORES 4201,N10101,Southwell Tr admin & ops,Office Equipment Purchase,65.00,65.00,.00,.00,.00,.00
30/01/2020,CO OP FOOD,N10101,Southwell Tr admin & ops,Vending Machine Provisions,13.20,13.20,.00,.00,.00,.00
31/12/2019,THE VEG STOP,N10101,Southwell Tr admin & ops,Miscellaneous Expenses,135.00,135.00,.00,.00,.00,.00
